[Event "Championnat d'Europe Rapide"]
[Date "2024.12.08"]
[White "Domingo Nunez, Ruben"]
[Black "Suljovic, Sulejman"]
[WhiteElo "2409"]
[BlackElo "2182"]
[Round "7.48"]
[Result "1-0"]
[TimeControl "900+10"]

1. e4 {[%emt 00:00:01] [%clk 00:15:18]} e6 {[%emt 00:00:02] [%clk 00:15:20]} 2.
Nf3 {[%clk 00:15:26]} d5 {[%clk 00:15:29]} 3. Nc3 {[%clk 00:15:35]} dxe4 {[%emt
00:00:01] [%clk 00:15:38]} 4. Nxe4 {[%clk 00:15:44]} Bd7 {[%clk 00:15:47]} 5. d4
{[%emt 00:00:02] [%clk 00:15:52]} Bc6 {[%clk 00:15:56]} 6. Bd3 {[%clk 00:16:01]}
Nd7 {[%clk 00:16:06]} 7. O-O {[%emt 00:00:05] [%clk 00:16:07]} Ngf6 {[%clk
00:16:15]} 8. Nc3 {[%emt 00:00:04] [%clk 00:16:13]} Be7 {[%emt 00:00:09] [%clk
00:16:16]} 9. Re1 {[%emt 00:00:02] [%clk 00:16:22]} O-O {[%emt 00:00:02] [%clk
00:16:23]} 10. Ne5 {[%emt 00:00:01] [%clk 00:16:31]} Nxe5 {[%emt 00:00:42] [%clk
00:15:51]} 11. dxe5 {[%emt 00:00:02] [%clk 00:16:40]} Nd5 {[%emt 00:00:01] [%clk
00:16:00]} 12. Qg4 {[%emt 00:00:01] [%clk 00:16:49]} Re8 {[%emt 00:01:33] [%clk
00:14:37]} 13. Bh6 {[%emt 00:01:36] [%clk 00:15:23]} Bf8 {[%emt 00:02:00] [%clk
00:12:47]} 14. Bg5 {[%emt 00:08:34] [%clk 00:06:58]} Be7 {[%emt 00:00:13] [%clk
00:12:44]} 15. Ne4 {[%emt 00:00:01] [%clk 00:07:07]} Bxg5 {[%emt 00:00:40] [%clk
00:12:15]} 16. Nxg5 {[%clk 00:07:16]} h6 {[%emt 00:02:20] [%clk 00:10:05]} 17.
Nf3 {[%emt 00:00:25] [%clk 00:07:01]} Qe7 {[%emt 00:00:42] [%clk 00:09:33]} 18.
a3 {[%emt 00:00:11] [%clk 00:07:00]} Rad8 {[%emt 00:01:00] [%clk 00:08:43]} 19.
Rad1 {[%emt 00:00:05] [%clk 00:07:05]} Nb6 {[%emt 00:00:48] [%clk 00:08:05]} 20.
Nd4 {[%emt 00:00:17] [%clk 00:06:58]} Bd5 {[%emt 00:00:22] [%clk 00:07:53]} 21.
h4 {[%emt 00:01:07] [%clk 00:06:01]} c5 {[%emt 00:01:53] [%clk 00:06:09]} 22.
Nb5 {[%emt 00:00:06] [%clk 00:06:06]} Nc8 {[%emt 00:00:01] [%clk 00:06:18]} 23.
Nc3 {[%emt 00:00:17] [%clk 00:05:59]} Bc6 {[%emt 00:00:07] [%clk 00:06:21]} 24.
Ne4 {[%emt 00:00:38] [%clk 00:05:31]} Bxe4 {[%emt 00:01:32] [%clk 00:04:59]} 25.
Qxe4 {[%emt 00:00:04] [%clk 00:05:36]} g6 {[%clk 00:05:08]} 26. c3 {[%emt
00:00:01] [%clk 00:05:45]} h5 {[%emt 00:00:16] [%clk 00:05:03]} 27. Qf4 {[%emt
00:00:38] [%clk 00:05:16]} a6 {[%emt 00:00:36] [%clk 00:04:38]} 28. Re3 {[%emt
00:00:07] [%clk 00:05:18]} Qf8 {[%emt 00:00:14] [%clk 00:04:34]} 29. g4 {[%emt
00:01:39] [%clk 00:03:49]} hxg4 {[%emt 00:00:18] [%clk 00:04:25]} 30. h5 {[%emt
00:00:18] [%clk 00:03:42]} c4 {[%emt 00:00:56] [%clk 00:03:40]} 31. Qxc4 {[%emt
00:01:04] [%clk 00:02:47]} gxh5 {[%emt 00:00:26] [%clk 00:03:24]} 32. f3 {[%emt
00:00:03] [%clk 00:02:54]} Qg7 {[%emt 00:00:13] [%clk 00:03:21]} 33. Kf2 {[%emt
00:00:21] [%clk 00:02:43]} g3+ {[%emt 00:00:10] [%clk 00:03:21]} 34. Kg2 {[%emt
00:00:08] [%clk 00:02:45]} Ne7 {[%emt 00:00:29] [%clk 00:03:03]} 35. Rh1 {[%emt
00:00:47] [%clk 00:02:07]} Qg5 {[%emt 00:00:29] [%clk 00:02:44]} 36. f4 {[%emt
00:00:41] [%clk 00:01:35]} Nd5 {[%emt 00:01:18] [%clk 00:01:36]} 37. Qxd5 {[%emt
00:00:07] [%clk 00:01:38]} Qxf4 {[%emt 00:00:21] [%clk 00:01:25]} 38. Qf3 {[%emt
00:00:02] [%clk 00:01:46]} Qg5 {[%emt 00:00:24]} 1-0

[Site "Europe Echecs"]

[Event "Championnat d'Europe Rapide"]
[Date "2024.12.08"]
[White "Nikolovski, Nikola"]
[Black "Trapp, Maximilian"]
[WhiteElo "2407"]
[BlackElo "2050"]
[Round "7.49"]
[Result "1-0"]
[TimeControl "900+10"]

1. e4 {[%emt 00:00:02] [%clk 00:15:17]} d5 {[%emt 00:00:03] [%clk 00:15:18]} 2.
exd5 {[%emt 00:00:24] [%clk 00:15:03]} Nf6 {[%emt 00:00:02] [%clk 00:15:25]} 3.
d4 {[%emt 00:00:32] [%clk 00:14:41]} Nxd5 {[%emt 00:00:03] [%clk 00:15:32]} 4.
Nf3 {[%emt 00:00:37] [%clk 00:14:14]} c6 {[%emt 00:00:12] [%clk 00:15:30]} 5. c4
{[%emt 00:00:23] [%clk 00:14:01]} Nf6 {[%emt 00:00:02] [%clk 00:15:39]} 6. Nc3
{[%emt 00:00:06] [%clk 00:14:06]} Bf5 {[%emt 00:00:02] [%clk 00:15:46]} 7. Qb3
{[%emt 00:01:04] [%clk 00:13:12]} Qb6 {[%emt 00:00:15] [%clk 00:15:41]} 8. c5
{[%emt 00:00:08] [%clk 00:13:14]} Qc7 {[%emt 00:00:11] [%clk 00:15:40]} 9. Bf4
{[%emt 00:01:48] [%clk 00:11:36]} Qc8 {[%emt 00:00:17] [%clk 00:15:33]} 10. Ne5
{[%emt 00:02:32] [%clk 00:09:14]} Be6 {[%emt 00:02:21] [%clk 00:13:22]} 11. Bc4
{[%emt 00:00:45] [%clk 00:08:39]} Bxc4 {[%emt 00:00:03] [%clk 00:13:29]} 12.
Nxc4 {[%emt 00:00:12] [%clk 00:08:36]} e6 {[%emt 00:05:18] [%clk 00:08:22]} 13.
O-O {[%emt 00:00:35] [%clk 00:08:11]} Be7 {[%emt 00:01:05] [%clk 00:07:27]} 14.
Bd6 {[%emt 00:01:35] [%clk 00:06:46]} Qd7 {[%emt 00:00:57] [%clk 00:06:40]} 15.
Ne5 {[%emt 00:01:27] [%clk 00:05:30]} Qc8 {[%emt 00:00:06] [%clk 00:06:44]} 16.
Bxe7 {[%emt 00:00:03] [%clk 00:05:36]} Kxe7 {[%emt 00:00:08] [%clk 00:06:45]}
17. f4 {[%emt 00:00:05] [%clk 00:05:41]} g6 {[%emt 00:00:19] [%clk 00:06:37]}
18. f5 {[%emt 00:02:56] [%clk 00:02:55]} gxf5 {[%emt 00:00:41] [%clk 00:06:06]}
19. Rxf5 {[%clk 00:03:00]} Rf8 {[%emt 00:00:13] [%clk 00:06:08]} 20. Rxf6 {[%emt
00:01:43] [%clk 00:01:26]} Kxf6 {[%emt 00:00:02] [%clk 00:06:17]} 21. Ne4+
{[%emt 00:00:01] [%clk 00:01:35]} Ke7 {[%emt 00:02:50] [%clk 00:03:37]} 22. Qg3
{[%emt 00:00:02] [%clk 00:01:43]} Kd8 {[%emt 00:02:12] [%clk 00:01:35]} 23. Qg5+
{[%emt 00:00:40] [%clk 00:01:12]} Kc7 {[%emt 00:00:06] [%clk 00:01:39]} 24. Qe7+
{[%emt 00:00:06] [%clk 00:01:16]} Nd7 {[%emt 00:00:08] [%clk 00:01:42]} 25. Qd6+
{[%emt 00:00:19] [%clk 00:01:07]} Kd8 {[%emt 00:00:09] [%clk 00:01:43]} 26. Nxd7
{[%emt 00:00:07] [%clk 00:01:09]} Qxd7 {[%emt 00:00:12] [%clk 00:01:42]} 27.
Qxf8+ {[%emt 00:00:02] [%clk 00:01:16]} 1-0

[Site "Europe Echecs"]

[Event "Championnat d'Europe Rapide"]
[Date "2024.12.08"]
[White "Martinkus, Rolandas"]
[Black "Mohr, Georg"]
[WhiteElo "1961"]
[BlackElo "2385"]
[Round "7.50"]
[Result "0-1"]
[TimeControl "900+10"]

1. Nf3 {[%emt 00:00:03] [%clk 00:15:18]} g6 {[%emt 00:00:05] [%clk 00:15:15]} 2.
e4 {[%emt 00:00:07] [%clk 00:15:21]} c5 {[%emt 00:01:07] [%clk 00:14:18]} 3. c3
{[%emt 00:00:06] [%clk 00:15:24]} d5 {[%emt 00:00:04] [%clk 00:14:24]} 4. exd5
{[%emt 00:00:03] [%clk 00:15:32]} Qxd5 {[%clk 00:14:34]} 5. d4 {[%emt 00:00:02]
[%clk 00:15:41]} cxd4 {[%emt 00:00:01] [%clk 00:14:42]} 6. cxd4 {[%emt 00:00:20]
[%clk 00:15:31]} Bg7 {[%emt 00:00:02] [%clk 00:14:50]} 7. Nc3 {[%emt 00:00:12]
[%clk 00:15:30]} Qd8 {[%emt 00:00:01] [%clk 00:14:59]} 8. Qa4+ {[%emt 00:00:42]
[%clk 00:14:58]} Nd7 {[%emt 00:00:28] [%clk 00:14:40]} 9. Bf4 {[%emt 00:00:30]
[%clk 00:14:38]} Ngf6 {[%emt 00:00:04] [%clk 00:14:46]} 10. Be2 {[%emt 00:02:41]
[%clk 00:12:07]} O-O {[%emt 00:00:04] [%clk 00:14:52]} 11. O-O {[%emt 00:00:05]
[%clk 00:12:12]} Nb6 {[%emt 00:00:10] [%clk 00:14:52]} 12. Qa3 {[%emt 00:00:15]
[%clk 00:12:08]} Be6 {[%emt 00:01:11] [%clk 00:13:50]} 13. Rfe1 {[%emt 00:00:08]
[%clk 00:12:10]} Nbd5 {[%emt 00:00:47] [%clk 00:13:13]} 14. Be5 {[%emt 00:00:17]
[%clk 00:12:03]} h6 {[%emt 00:01:56] [%clk 00:11:27]} 15. Rac1 {[%emt 00:00:31]
[%clk 00:11:43]} a6 {[%emt 00:00:07] [%clk 00:11:30]} 16. Na4 {[%emt 00:01:35]
[%clk 00:10:18]} Qa5 {[%emt 00:00:11] [%clk 00:11:28]} 17. Nc5 {[%emt 00:00:39]
[%clk 00:09:49]} Qxa3 {[%emt 00:00:01] [%clk 00:11:37]} 18. bxa3 {[%emt
00:00:01] [%clk 00:09:58]} Bc8 {[%emt 00:00:09] [%clk 00:11:38]} 19. a4 {[%emt
00:01:08] [%clk 00:09:00]} b6 {[%emt 00:00:22] [%clk 00:11:26]} 20. Nb3 {[%emt
00:00:01] [%clk 00:09:09]} a5 {[%emt 00:00:05] [%clk 00:11:31]} 21. Nfd2 {[%emt
00:01:33] [%clk 00:07:46]} Bd7 {[%emt 00:01:00] [%clk 00:10:41]} 22. Bf3 {[%emt
00:00:12] [%clk 00:07:44]} Rac8 {[%emt 00:01:14] [%clk 00:09:38]} 23. Nc4 {[%emt
00:02:24] [%clk 00:05:30]} Bxa4 {[%emt 00:04:19] [%clk 00:05:29]} 24. Bxf6
{[%emt 00:00:07] [%clk 00:05:33]} Nxf6 {[%emt 00:00:06] [%clk 00:05:33]} 25.
Nxb6 {[%emt 00:00:02] [%clk 00:05:40]} Rxc1 {[%emt 00:00:04] [%clk 00:05:39]}
26. Nxc1 {[%emt 00:00:39] [%clk 00:05:10]} Bb5 {[%emt 00:00:17] [%clk 00:05:33]}
27. Rxe7 {[%emt 00:00:30] [%clk 00:04:50]} Rb8 {[%emt 00:01:14] [%clk 00:04:29]}
28. Rb7 {[%emt 00:00:08] [%clk 00:04:52]} Re8 {[%emt 00:00:29] [%clk 00:04:09]}
29. Re7 {[%emt 00:00:47]} Rb8 {[%emt 00:00:03]} 30. Nd5 {[%emt 00:00:02] [%clk
00:03:39]} Ra8 {[%clk 00:04:09]} 0-1

[Site "Europe Echecs"]

[Event "Championnat d'Europe Rapide"]
[Date "2024.12.08"]
[White "Gatineau, Yovann"]
[Black "Molina Carretero, Daniel"]
[WhiteElo "2363"]
[BlackElo "2195"]
[Round "7.51"]
[Result "1-0"]
[TimeControl "900+10"]

1. d4 {[%emt 00:02:34] [%clk 00:12:43]} Nf6 {[%emt 00:00:03] [%clk 00:15:18]} 2.
Bf4 {[%emt 00:00:05] [%clk 00:12:47]} d5 {[%emt 00:00:05] [%clk 00:15:23]} 3. e3
{[%emt 00:00:01] [%clk 00:12:56]} c5 {[%emt 00:00:10] [%clk 00:15:23]} 4. Nc3
{[%emt 00:00:02] [%clk 00:13:05]} cxd4 {[%emt 00:01:02] [%clk 00:14:30]} 5. exd4
{[%emt 00:00:02] [%clk 00:13:13]} Bf5 {[%emt 00:00:43] [%clk 00:13:56]} 6. Nb5
{[%emt 00:00:26] [%clk 00:12:58]} Na6 {[%emt 00:00:02] [%clk 00:14:05]} 7. c3
{[%emt 00:00:05] [%clk 00:13:03]} e6 {[%emt 00:01:13] [%clk 00:13:01]} 8. Qa4
{[%emt 00:00:06] [%clk 00:13:07]} Qd7 {[%emt 00:00:03] [%clk 00:13:08]} 9. Nf3
{[%emt 00:00:05] [%clk 00:13:12]} Kd8 {[%emt 00:01:17] [%clk 00:12:02]} 10. Ne5
{[%emt 00:00:28] [%clk 00:12:54]} Qe7 {[%emt 00:02:13] [%clk 00:09:59]} 11. Nd6
{[%emt 00:01:32] [%clk 00:11:32]} Bg6 {[%emt 00:01:36] [%clk 00:08:32]} 12. Qa5+
{[%emt 00:02:19] [%clk 00:09:23]} Nc7 {[%emt 00:03:23] [%clk 00:05:20]} 13.
Nxb7+ {[%emt 00:00:15] [%clk 00:09:18]} Kc8 {[%emt 00:00:02] [%clk 00:05:28]}
14. Nc5 {[%emt 00:01:04] [%clk 00:08:23]} a6 {[%emt 00:01:44] [%clk 00:03:55]}
15. Nc6 {[%emt 00:00:17] [%clk 00:08:15]} 1-0

[Site "Europe Echecs"]

[Event "Championnat d'Europe Rapide"]
[Date "2024.12.08"]
[White "Djurovic, Peko"]
[Black "Pipiras, Filipa Fortuna"]
[WhiteElo "2253"]
[BlackElo "2178"]
[Round "7.52"]
[Result "1/2-1/2"]
[TimeControl "900+10"]

1. e4 {[%emt 00:00:02] [%clk 00:15:16]} c6 {[%emt 00:01:27] [%clk 00:13:54]} 2.
d4 {[%emt 00:00:45] [%clk 00:14:40]} d5 {[%emt 00:00:04] [%clk 00:14:00]} 3. e5
{[%emt 00:00:02] [%clk 00:14:48]} Bf5 {[%emt 00:00:05] [%clk 00:14:05]} 4. h4
{[%emt 00:00:02] [%clk 00:14:56]} h5 {[%emt 00:00:02] [%clk 00:14:13]} 5. Bg5
{[%emt 00:00:02] [%clk 00:15:04]} Qb6 {[%emt 00:00:07] [%clk 00:14:17]} 6. Bd3
{[%emt 00:00:02] [%clk 00:15:12]} Qxd4 {[%emt 00:00:04] [%clk 00:14:22]} 7. Nf3
{[%emt 00:00:02] [%clk 00:15:20]} Qg4 {[%emt 00:00:02] [%clk 00:14:30]} 8. Bxf5
{[%emt 00:00:03] [%clk 00:15:26]} Qxf5 {[%emt 00:00:03] [%clk 00:14:38]} 9. O-O
{[%emt 00:00:03] [%clk 00:15:33]} e6 {[%emt 00:00:03] [%clk 00:14:45]} 10. c4
{[%emt 00:00:02] [%clk 00:15:41]} Nd7 {[%emt 00:00:04] [%clk 00:14:50]} 11. Nc3
{[%emt 00:00:17] [%clk 00:15:35]} Be7 {[%emt 00:00:04] [%clk 00:14:56]} 12. cxd5
{[%emt 00:01:54] [%clk 00:13:52]} exd5 {[%emt 00:00:03] [%clk 00:15:02]} 13. Re1
{[%emt 00:03:00] [%clk 00:11:02]} Nc5 {[%emt 00:00:34] [%clk 00:14:38]} 14. Nd4
{[%emt 00:05:34] [%clk 00:05:38]} Qd3 {[%emt 00:01:28] [%clk 00:13:20]} 15. e6
{[%emt 00:02:00] [%clk 00:03:49]} Bxg5 {[%emt 00:07:13] [%clk 00:06:16]} 16.
hxg5 {[%emt 00:00:04] [%clk 00:03:55]} Ne7 {[%emt 00:00:48] [%clk 00:05:38]} 17.
b4 {[%emt 00:01:36] [%clk 00:02:30]} Qxd1 {[%emt 00:01:01] [%clk 00:04:46]} 18.
exf7+ {[%emt 00:00:03] [%clk 00:02:37]} Kxf7 {[%emt 00:00:02] [%clk 00:04:54]}
19. Raxd1 {[%emt 00:00:02] [%clk 00:02:45]} Nd7 {[%emt 00:00:32] [%clk
00:04:32]} 20. b5 {[%emt 00:00:06] [%clk 00:02:50]} Rhe8 {[%emt 00:01:27] [%clk
00:03:14]} 21. bxc6 {[%emt 00:00:43] [%clk 00:02:18]} bxc6 {[%emt 00:00:04]
[%clk 00:03:20]} 22. Rb1 {[%emt 00:00:21] [%clk 00:02:06]} Nc5 {[%emt 00:02:24]
[%clk 00:01:06]} 23. Re3 {[%emt 00:01:06] [%clk 00:01:10]} Rac8 {[%emt 00:00:25]
[%clk 00:00:50]} 24. g3 {[%emt 00:00:39] [%clk 00:00:41]} g6 {[%emt 00:00:04]
[%clk 00:00:57]} 25. Rf3+ {[%emt 00:00:16] [%clk 00:00:35]} Kg7 {[%emt 00:00:10]
[%clk 00:00:57]} 26. Re1 {[%emt 00:00:15] [%clk 00:00:30]} Nf5 {[%emt 00:00:20]
[%clk 00:00:47]} 27. Nxf5+ {[%emt 00:00:04] [%clk 00:00:36]} gxf5 {[%emt
00:00:02] [%clk 00:00:55]} 28. Rxe8 {[%emt 00:00:05] [%clk 00:00:42]} Rxe8
{[%clk 00:01:04]} 29. Rxf5 {[%emt 00:00:01] [%clk 00:00:50]} Ne6 {[%emt
00:00:09] [%clk 00:01:05]} 30. Re5 {[%emt 00:00:08] [%clk 00:00:52]} Nc7 {[%emt
00:00:11] [%clk 00:01:05]} 31. Rxe8 {[%emt 00:00:05] [%clk 00:00:56]} Nxe8
{[%emt 00:00:01] [%clk 00:01:14]} 32. f4 {[%emt 00:00:02] [%clk 00:01:05]} Nd6
{[%emt 00:00:04] [%clk 00:01:19]} 33. Kf2 {[%emt 00:00:05] [%clk 00:01:11]} Kg6
{[%emt 00:00:12] [%clk 00:01:16]} 34. Kf3 {[%emt 00:00:20] [%clk 00:01:01]} Kf5
{[%emt 00:00:05] [%clk 00:01:21]} 35. Nd1 {[%emt 00:00:35] [%clk 00:00:37]} d4
{[%emt 00:00:06] [%clk 00:01:24]} 36. Nf2 {[%emt 00:00:02] [%clk 00:00:45]} c5
{[%emt 00:00:08] [%clk 00:01:26]} 37. g4+ {[%emt 00:00:01] [%clk 00:00:54]}
hxg4+ {[%emt 00:00:03] [%clk 00:01:33]} 38. Nxg4 {[%emt 00:00:02] [%clk
00:01:03]} c4 {[%emt 00:00:27] [%clk 00:01:16]} 39. Nh6+ {[%emt 00:00:19] [%clk
00:00:54]} Kg6 {[%emt 00:00:43] [%clk 00:00:42]} 40. Ng4 {[%emt 00:00:02] [%clk
00:01:03]} Kf5 {[%emt 00:00:32] [%clk 00:00:20]} 41. Ne5 {[%emt 00:00:46] [%clk
00:00:26]} c3 {[%emt 00:00:08] [%clk 00:00:22]} 42. Nd3 {[%emt 00:00:23] [%clk
00:00:14]} a5 {[%emt 00:00:10] [%clk 00:00:22]} 43. Ke2 {[%emt 00:00:02] [%clk
00:00:22]} Nc4 {[%emt 00:00:05] [%clk 00:00:26]} 44. Kd1 {[%emt 00:00:21] [%clk
00:00:12]} a4 {[%emt 00:00:07] [%clk 00:00:29]} 45. Kc2 {[%emt 00:00:06] [%clk
00:00:15]} Ne3+ {[%emt 00:00:03] [%clk 00:00:36]} 46. Kc1 {[%emt 00:00:01] [%clk
00:00:25]} a3 {[%emt 00:00:04] [%clk 00:00:42]} 47. Kb1 {[%emt 00:00:16] [%clk
00:00:19]} Nc4 {[%emt 00:00:04] [%clk 00:00:47]} 48. Kc2 {[%emt 00:00:07] [%clk
00:00:23]} Ne3+ {[%emt 00:00:08] [%clk 00:00:49]} 49. Kc1 {[%emt 00:00:05] [%clk
00:00:27]} Nd5 {[%emt 00:00:04] [%clk 00:00:55]} 50. Kc2 {[%emt 00:00:04] [%clk
00:00:34]} Ne7 {[%emt 00:00:06] [%clk 00:00:59]} 51. Kb3 {[%emt 00:00:21] [%clk
00:00:24]} Ke4 {[%emt 00:00:08] [%clk 00:01:00]} 52. Kc4 {[%emt 00:00:01] [%clk
00:00:32]} c2 {[%emt 00:00:10] [%clk 00:01:00]} 53. Nc1 {[%emt 00:00:11] [%clk
00:00:31]} Nf5 {[%emt 00:00:07] [%clk 00:01:03]} 54. Kb3 {[%emt 00:00:08] [%clk
00:00:34]} Kxf4 {[%emt 00:00:11] [%clk 00:01:01]} 55. g6 {[%emt 00:00:04] [%clk
00:00:41]} Kg5 {[%emt 00:00:02] [%clk 00:01:09]} 56. Kxc2 {[%emt 00:00:01] [%clk
00:00:49]} Kxg6 {[%emt 00:00:02] [%clk 00:01:18]} 57. Kb3 {[%emt 00:00:09] [%clk
00:00:50]} Kf6 {[%emt 00:00:04] [%clk 00:01:23]} 58. Kxa3 {[%emt 00:00:01] [%clk
00:00:59]} Ke5 {[%emt 00:00:03] [%clk 00:01:31]} 59. Kb3 {[%emt 00:00:12] [%clk
00:00:57]} Kd5 {[%emt 00:00:04] [%clk 00:01:37]} 60. a4 {[%emt 00:00:03] [%clk
00:01:03]} Nd6 {[%emt 00:00:04] [%clk 00:01:43]} 61. Ne2 {[%emt 00:00:04] [%clk
00:01:10]} Kc5 {[%emt 00:00:23] [%clk 00:01:30]} 62. Nf4 {[%emt 00:00:10] [%clk
00:01:10]} Kb6 {[%emt 00:00:11] [%clk 00:01:29]} 63. Kb4 {[%emt 00:00:02] [%clk
00:01:18]} Ka6 {[%emt 00:00:03] [%clk 00:01:35]} 64. Nd3 {[%emt 00:00:04] [%clk
00:01:25]} Nb7 {[%emt 00:00:05] [%clk 00:01:39]} 65. Kc4 {[%emt 00:00:06] [%clk
00:01:29]} Ka5 {[%emt 00:00:03] [%clk 00:01:47]} 66. Kxd4 {[%emt 00:00:02] [%clk
00:01:37]} Kxa4 {[%emt 00:00:01] [%clk 00:01:55]} 1/2-1/2

[Site "Europe Echecs"]

[Event "Championnat d'Europe Rapide"]
[Date "2024.12.08"]
[White "Fromm, Marius"]
[Black "Sirigos, Nikolaos"]
[WhiteElo "2459"]
[BlackElo "2044"]
[Round "7.53"]
[Result "1-0"]
[TimeControl "900+10"]

1. e4 {[%emt 00:00:03] [%clk 00:15:17]} e5 {[%emt 00:00:02] [%clk 00:15:17]} 2.
Nf3 {[%emt 00:00:01] [%clk 00:15:26]} Nc6 {[%emt 00:00:02] [%clk 00:15:25]} 3.
Bb5 {[%emt 00:00:02] [%clk 00:15:35]} a6 {[%emt 00:00:08] [%clk 00:15:27]} 4.
Ba4 {[%emt 00:00:01] [%clk 00:15:43]} Nf6 {[%emt 00:00:02] [%clk 00:15:35]} 5.
Nc3 {[%emt 00:00:01] [%clk 00:15:52]} b5 {[%emt 00:00:33] [%clk 00:15:13]} 6.
Bb3 {[%emt 00:00:02] [%clk 00:16:00]} Be7 {[%emt 00:00:02] [%clk 00:15:20]} 7.
a4 {[%emt 00:00:18] [%clk 00:15:52]} b4 {[%emt 00:01:18] [%clk 00:14:12]} 8. Nd5
{[%emt 00:00:02] [%clk 00:16:00]} O-O {[%emt 00:00:05] [%clk 00:14:18]} 9. d3
{[%emt 00:00:39] [%clk 00:15:31]} Bb7 {[%emt 00:01:11] [%clk 00:13:16]} 10. a5
{[%emt 00:01:29] [%clk 00:14:13]} Nd4 {[%emt 00:01:24] [%clk 00:12:02]} 11. Nxd4
{[%emt 00:01:39] [%clk 00:12:43]} Bxd5 {[%emt 00:00:40] [%clk 00:11:32]} 12.
exd5 {[%emt 00:00:53] [%clk 00:12:01]} exd4 {[%emt 00:00:03] [%clk 00:11:40]}
13. O-O {[%emt 00:00:02] [%clk 00:12:08]} d6 {[%emt 00:01:08] [%clk 00:10:43]}
14. Bd2 {[%emt 00:00:13] [%clk 00:12:04]} Qb8 {[%emt 00:01:42] [%clk 00:09:10]}
15. Re1 {[%emt 00:00:25] [%clk 00:11:49]} Re8 {[%emt 00:00:11] [%clk 00:09:09]}
16. Ba4 {[%emt 00:00:48] [%clk 00:11:11]} Nxd5 {[%emt 00:02:14] [%clk 00:07:05]}
17. Bc6 {[%emt 00:00:05] [%clk 00:11:16]} Nf6 {[%emt 00:00:04] [%clk 00:07:12]}
18. Qf3 {[%emt 00:00:27] [%clk 00:10:58]} Ra7 {[%emt 00:01:29] [%clk 00:05:53]}
19. Bg5 {[%emt 00:00:39] [%clk 00:10:29]} Qd8 {[%emt 00:00:35] [%clk 00:05:28]}
20. Bxf6 {[%emt 00:00:11] [%clk 00:10:28]} gxf6 {[%emt 00:00:04] [%clk
00:05:34]} 21. Re2 {[%emt 00:01:17] [%clk 00:09:21]} Ra8 {[%emt 00:01:01] [%clk
00:15:10]} 1-0

[Site "Europe Echecs"]

[Event "Championnat d'Europe Rapide"]
[Date "2024.12.08"]
[White "Reprintsev, Alexander"]
[Black "Baliasnyj, Timur"]
[WhiteElo "2230"]
[BlackElo "2174"]
[Round "7.54"]
[Result "1/2-1/2"]
[TimeControl "900+10"]

1. e4 {[%emt 00:00:03] [%clk 00:15:18]} c5 {[%emt 00:00:05] [%clk 00:15:14]} 2.
b3 {[%emt 00:00:02] [%clk 00:15:26]} Nf6 {[%emt 00:00:08] [%clk 00:15:15]} 3. e5
{[%emt 00:00:02] [%clk 00:15:34]} Nd5 {[%emt 00:00:01] [%clk 00:15:24]} 4. Nc3
{[%emt 00:00:02] [%clk 00:15:42]} Nxc3 {[%emt 00:01:29] [%clk 00:14:05]} 5. dxc3
{[%emt 00:00:01] [%clk 00:15:51]} Nc6 {[%emt 00:00:31] [%clk 00:13:45]} 6. Nf3
{[%emt 00:00:02] [%clk 00:15:58]} g6 {[%emt 00:00:09] [%clk 00:13:46]} 7. Bc4
{[%emt 00:00:27] [%clk 00:15:41]} Bg7 {[%emt 00:00:05] [%clk 00:13:52]} 8. O-O
{[%emt 00:00:02] [%clk 00:15:49]} O-O {[%emt 00:00:54] [%clk 00:13:08]} 9. Bf4
{[%emt 00:00:02] [%clk 00:15:56]} d6 {[%emt 00:03:01] [%clk 00:10:18]} 10. exd6
{[%emt 00:00:31] [%clk 00:15:35]} Bxc3 {[%emt 00:00:09] [%clk 00:10:18]} 11.
dxe7 {[%emt 00:00:07] [%clk 00:15:38]} Nxe7 {[%emt 00:03:13] [%clk 00:07:15]}
12. Ng5 {[%emt 00:04:59] [%clk 00:10:49]} Bf5 {[%emt 00:02:24] [%clk 00:05:02]}
13. Qxd8 {[%emt 00:01:35] [%clk 00:09:24]} Raxd8 {[%emt 00:00:09] [%clk
00:05:02]} 14. Rad1 {[%emt 00:00:02] [%clk 00:09:33]} Rxd1 {[%emt 00:03:04]
[%clk 00:02:08]} 15. Rxd1 {[%emt 00:00:01] [%clk 00:09:41]} Bf6 {[%emt 00:00:18]
[%clk 00:02:01]} 16. Rd6 {[%emt 00:02:55] [%clk 00:06:56]} Bd4 {[%emt 00:00:55]
[%clk 00:01:15]} 17. h3 {[%emt 00:01:13] [%clk 00:05:53]} Nc8 {[%emt 00:00:32]
[%clk 00:00:54]} 18. Rd5 {[%emt 00:02:46] [%clk 00:03:16]} Nb6 {[%emt 00:00:07]
[%clk 00:00:57]} 19. Rxf5 {[%emt 00:00:05] [%clk 00:03:22]} gxf5 {[%emt
00:00:03] [%clk 00:01:04]} 20. Bd3 {[%clk 00:03:31]} Nd5 {[%emt 00:00:40] [%clk
00:00:35]} 21. Bd2 {[%emt 00:00:09] [%clk 00:03:32]} Ne7 {[%emt 00:00:17] [%clk
00:00:27]} 22. Nf3 {[%emt 00:00:07] [%clk 00:03:35]} Bf6 {[%emt 00:00:04] [%clk
00:00:33]} 23. a4 {[%emt 00:00:13] [%clk 00:03:33]} b6 {[%emt 00:00:02] [%clk
00:00:41]} 24. Kf1 {[%emt 00:00:10] [%clk 00:03:33]} Re8 {[%emt 00:00:13] [%clk
00:00:37]} 1/2-1/2

[Site "Europe Echecs"]